bitfinex/quotes_ETHUSD_20240924
["timestamp","ask_amount","ask_price","bid_price","bid_amount"]
[1727210085475,3.7638,2656.9,2656.5,0.7915]
[1727210086063,3.76394,2656.8,2656.5,0.7915]
[1727210086469,3.76408,2656.7,2656.5,0.7915]
[1727210086841,3.76408,2656.7,2656.3,3.76453]
[1727210087128,3.76408,2656.7,2656.3,4.55603]
[1727210087329,3.76394,2656.8,2656.3,4.55603]
[1727210088156,3.76417,2656.7,2656.3,0.7915]
[1727210088470,3.76428,2656.6,2656.3,0.7915]
[1727210089929,3.76408,2656.7,2656.3,0.7915]
[1727210092239,3.76421,2656.6,2656.3,0.7915]
[1727210093385,3.76449,2656.4,2655.8,3.76526]
[1727210093554,3.76479,2656.2,2655.9,0.7563]
[1727210093755,0.7796,2656.5,2655.9,0.7563]
[1727210093944,3.76485,2656.2,2655.9,0.7563]
[1727210094137,7.52976,2656.2,2655.9,0.7563]
[1727210094580,3.76485,2656.2,2655.9,0.7563]
[1727210095587,3.76501,2656.1,2655.9,0.7563]
[1727210095879,3.76506,2656.0,2655.7,0.7947588]
[1727210096063,3.76492,2656.1,2655.7,0.7947588]
[1727210096403,3.76474,2656.3,2655.7,0.7947588]
[1727210096404,3.76484,2656.2,2655.7,0.7947588]
[1727210099915,3.76505,2656.1,2655.7,0.7947588]
[1727210100085,3.76502,2656.1,2655.7,0.7947588]
[1727210100287,3.76473,2656.3,2655.7,4.5601888]
[1727210100609,3.76473,2656.3,2655.8,3.76524]
[1727210101931,3.76453,2656.4,2655.9,3.76513]
[1727210102100,4.54404,2656.5,2656.0,3.76495]
[1727210102274,7.38,2656.8,2656.1,0.7563]
[1727210102478,4.15747454,2656.9,2656.3,3.76456]
[1727210103017,3.76387,2656.9,2656.4,3.76448]
[1727210103704,7.52778,2656.9,2656.3,3.76461]
[1727210103905,3.76393,2656.8,2656.3,3.76461]
[1727210104495,3.76393,2656.8,2656.4,0.7563]
[1727210107479,7.52793,2656.8,2656.4,0.7563]
[1727210107680,3.76408,2656.7,2656.4,0.7563]
[1727210108815,7.52795,2656.8,2656.4,0.7563]
[1727210110718,3.76422,2656.6,2656.4,0.7563]
[1727210110894,7.52855,2656.6,2656.4,0.7563]
[1727210111222,4.517075,2656.6,2655.7,3.8038488]
[1727210111426,0.8094,2656.5,2655.8,0.8178]
[1727210111584,3.76464,2656.3,2655.8,0.8178]
[1727210112425,3.76451,2656.4,2655.8,0.8178]
[1727210112642,3.76479,2656.2,2655.8,0.8178]
[1727210112920,4.222031,2656.3,2655.8,0.8178]
[1727210113496,3.76503,2656.1,2655.8,0.8178]
[1727210113724,3.76513,2656.0,2655.7,0.0384588]
[1727210113923,3.76521,2655.9,2655.7,0.0384588]
[1727210115896,0.8094,2656.0,2655.7,0.0384588]
[1727210116231,3.765,2656.1,2655.7,0.0384588]
[1727210117131,3.76506,2656.0,2655.7,0.0384588]
[1727210117294,0.457391,2656.3,2655.7,0.0384588]
[1727210117498,0.8094,2656.5,2655.8,3.76522]
[1727210117724,0.8094,2656.5,2655.8,3.76531]
[1727210117939,0.8094,2656.5,2656.3,3.76456]
[1727210118092,3.76387,2656.9,2656.4,0.8178]
[1727210118093,7.52776,2656.9,2656.4,0.8178]
[1727210118293,1.571716,2656.9,2656.4,0.8178]
[1727210118828,3.76395,2656.8,2656.4,0.8178]
[1727210119129,1.571716,2656.9,2656.4,4.58229]
[1727210119346,5.335526,2656.9,2656.4,4.58229]
[1727210119849,3.76372,2657.0,2656.5,3.76434]
[1727210120347,7.52747,2657.0,2656.5,3.76434]
[1727210120560,3.76379,2656.9,2656.4,0.8178]
[1727210122137,3.76379,2656.9,2656.4,4.58228]
[1727210122499,7.52745,2657.0,2656.4,4.58228]
[1727210122701,3.76372,2657.0,2656.5,3.76431]
[1727210122924,3.76372,2657.0,2656.5,3.76433]
[1727210123125,7.52746,2657.0,2656.5,3.76433]
[1727210123328,3.76372,2657.0,2656.5,3.76433]
[1727210124807,4.597377,2657.0,2656.4,0.8178]
[1727210125037,3.76392,2656.8,2656.4,0.8178]
[1727210125409,3.76392,2656.8,2656.1,3.76485]
[1727210125631,3.76422,2656.6,2656.1,4.59075]
[1727210126456,4.51972,2656.6,2656.1,0.8259]
[1727210126741,4.896142,2656.6,2656.1,0.8259]
[1727210126941,8.660422,2656.6,2656.1,4.59078]
[1727210127410,4.896142,2656.6,2656.1,4.59078]
[1727210128319,4.896142,2656.6,2656.1,4.59073]
[1727210128659,3.76422,2656.6,2656.2,3.76476]
[1727210129418,3.76422,2656.6,2656.1,8.35554]
[1727210130162,3.76422,2656.6,2656.1,4.59071]
[1727210130460,3.76422,2656.6,2656.2,3.76476]
[1727210131845,3.76422,2656.6,2656.3,0.08270734]
[1727210133616,4.592594,2656.6,2656.3,0.08270734]
[1727210133845,3.76449,2656.4,2656.3,0.08270734]
[1727210134057,3.76449,2656.4,2655.9,0.8259]
[1727210134221,3.76478,2656.2,2655.7,3.8039388]
[1727210134618,3.76478,2656.2,2655.7,4.6298388]
[1727210134820,4.593257,2656.2,2655.7,0.8643588]
[1727210135019,4.593257,2656.2,2655.7,0.0384588]
[1727210135020,3.76506,2656.0,2655.7,0.0384588]
[1727210135236,3.76478,2656.2,2655.7,0.0384588]
[1727210135459,4.216808,2656.2,2655.7,3.8038688]
[1727210135770,7.981658,2656.2,2655.7,0.0384588]
[1727210135971,4.216808,2656.2,2655.7,0.0384588]
[1727210136182,0.4972308,2656.1,2655.7,0.0384588]
[1727210136339,4.2621508,2656.1,2655.7,0.0384588]
[1727210138790,3.76508,2656.0,2655.7,0.0384588]
[1727210138945,4.55404,2655.8,2655.7,0.0384588]
[1727210139742,4.55404,2655.8,2655.7,0.12216639]
[1727210139942,5.385965,2655.8,2655.7,0.12216639]
[1727210140661,8.935965,2655.8,2655.7,0.12216639]
[1727210141112,8.935965,2655.8,2655.7,0.0384588]
[1727210141113,14.31289626,2655.8,2655.7,0.0384588]
[1727210141402,16.68127363,2655.8,2655.7,0.0384588]
[1727210142406,12.04689626,2655.8,2655.7,0.0384588]
[1727210147255,12.04689626,2655.8,2654.5,3.76712]
[1727210147256,1.25,2654.5,2652.5,2.79195602]
[1727210147456,0.55,2652.6,2652.5,0.0384588]
[1727210147679,2.75927064,2653.0,2652.5,0.0384588]
[1727210147891,2.75749896,2653.5,2652.5,0.0384588]
[1727210147892,1.9709076,2653.1,2652.5,0.0384588]
[1727210148070,5.34572608,2653.3,2652.5,1.20335236]
[1727210148269,0.3936,2653.5,2653.0,3.76929]
[1727210148504,0.3936,2653.5,2653.1,0.376929]
[1727210148658,0.3936,2653.5,2653.2,0.7591]
[1727210149006,0.3936,2653.5,2652.7,3.7697]
[1727210149207,0.3936,2653.5,2652.8,0.7591]
[1727210149512,0.3936,2653.5,2652.9,4.22233]
[1727210150383,0.3936,2653.5,2653.1,3.76916]
[1727210151381,0.3936,2653.5,2652.9,7.99168]
[1727210151580,0.3936,2653.5,2653.0,3.7693]
[1727210152982,3.76818,2653.8,2653.0,3.7693]
[1727210153198,3.76818,2653.8,2653.1,4.568303]
[1727210154186,7.53649,2653.8,2653.1,4.568303]
[1727210154579,3.76818,2653.8,2653.1,4.568303]
[1727210154916,3.76818,2653.8,2653.2,3.76893]
[1727210155119,3.76818,2653.8,2653.1,4.568303]
[1727210155317,3.76818,2653.8,2653.2,0.4568303]
[1727210155906,3.76818,2653.8,2653.3,0.05802087]
[1727210156329,3.7653,2653.9,2652.8,0.7834883]
[1727210156620,3.769,2653.3,2652.8,0.7834883]
[1727210156822,7.53801,2653.3,2652.9,0.05825429]
[1727210157021,3.769,2653.3,2652.9,0.05825429]
[1727210157586,7.53737,2653.5,2652.9,0.05825429]
[1727210158009,3.76866,2653.5,2652.9,3.82770429]
[1727210158193,3.76833,2653.7,2653.0,0.50665074]
[1727210158417,3.76847,2653.6,2653.1,0.05907026]
[1727210158600,3.76833,2653.7,2653.1,0.05907026]
[1727210158808,3.7687,2653.5,2653.1,0.05907026]
[1727210158998,3.76891,2653.3,2653.1,0.05907026]
[1727210159202,3.76903,2653.2,2652.8,0.0243883]
[1727210159806,7.53789,2653.3,2652.8,0.0243883]
[1727210160099,3.76891,2653.3,2652.8,0.0243883]
[1727210160300,3.76833,2653.7,2652.8,0.40379213]
[1727210160500,0.7653,2653.9,2653.1,3.76913]
[1727210160501,3.76848,2653.6,2653.1,3.76913]
[1727210160706,7.53708,2653.6,2652.9,3.76935]
[1727210160915,3.76905,2653.2,2652.8,0.0243883]
[1727210161115,3.76919,2653.1,2652.8,0.0243883]
[1727210161357,3.76917,2653.1,2652.8,0.0243883]
[1727210161653,3.76905,2653.2,2652.8,0.0243883]
[1727210162515,7.5377,2653.4,2652.8,0.0243883]
[1727210162719,7.5377,2653.4,2652.8,0.78077413]
[1727210162920,3.76855,2653.6,2653.0,3.76923]
[1727210163575,3.76855,2653.6,2653.0,7.53846]
[1727210163716,3.76855,2653.6,2653.0,3.76923]
[1727210164529,3.76864,2653.5,2653.0,3.76923]
[1727210165437,7.38,2653.7,2653.0,3.76921]
[1727210165662,3.76854,2653.6,2653.0,7.53843]
[1727210165827,3.76854,2653.6,2653.1,3.76917]
[1727210166026,7.38,2653.7,2653.1,1.553338]
[1727210166249,7.38,2653.7,2653.3,3.76887]
[1727210167423,7.38,2653.7,2653.5,7.53708]
[1727210167947,3.76783,2654.1,2653.6,3.76844]
[1727210168261,11.1474,2654.4,2653.7,0.7522]
[1727210168622,3.76754,2654.3,2653.8,3.76808]
[1727210168943,11.1474,2654.4,2653.8,3.76808]
[1727210169121,12.26214,2654.4,2653.8,3.76808]
[1727210169447,3.76755,2654.3,2653.8,3.76808]
[1727210170070,12.26214,2654.4,2653.8,3.76808]
[1727210170338,3.76749,2654.3,2653.8,3.76808]
[1727210170544,12.26214,2654.4,2653.7,0.7522]
[1727210170545,3.76765,2654.2,2653.7,0.7522]
[1727210170816,8.49474,2654.4,2653.8,0.05835798]
[1727210170817,3.76796,2654.0,2653.8,0.05835798]
[1727210171016,5.757274,2654.3,2653.8,0.05835798]
[1727210171261,3.76771,2654.2,2653.7,0.7522]
[1727210171412,5.757274,2654.3,2653.7,0.7522]
[1727210171413,3.76776,2654.1,2653.7,0.7522]
[1727210171614,3.76776,2654.1,2653.8,0.05835798]
[1727210171936,3.76776,2654.1,2653.7,0.7522]
[1727210172360,3.76776,2654.1,2653.8,0.05835798]
[1727210172531,3.76776,2654.1,2653.7,0.7522]
[1727210172727,3.76776,2654.1,2653.8,0.05835798]
[1727210172955,3.76776,2654.1,2653.7,0.7522]
[1727210173269,3.76776,2654.1,2653.8,0.05835798]
[1727210173691,3.76767,2654.2,2653.7,4.52047]
[1727210173866,3.76767,2654.2,2653.9,0.05830982]
[1727210174057,3.76767,2654.2,2653.7,4.52047]
[1727210174058,3.76767,2654.2,2653.8,0.05835798]
[1727210174289,3.76767,2654.2,2654.0,0.05826166]
[1727210174472,3.76775,2654.1,2653.9,0.05830982]
[1727210174673,3.76775,2654.1,2653.7,0.7522]
[1727210174880,8.0347784,2654.2,2653.7,0.7522]
[1727210175190,8.0347784,2654.2,2653.8,0.05828118]
[1727210175397,8.0347784,2654.2,2653.7,0.7522]
[1727210175551,8.0347784,2654.2,2653.8,0.05828118]
[1727210175752,8.0347784,2654.2,2653.7,0.7522]
[1727210175993,8.0347784,2654.2,2653.8,0.05828118]
[1727210176151,3.76776,2654.1,2653.7,0.7522]
[1727210176491,3.76776,2654.1,2653.8,0.05828118]
[1727210176674,4.2670584,2654.2,2653.8,0.05828118]
[1727210178966,7.5354,2654.2,2654.0,0.05818486]
[1727210179153,7.5354,2654.2,2653.7,0.7522]
[1727210179348,7.5354,2654.2,2653.8,0.05828118]
[1727210179655,7.5354,2654.2,2653.7,0.7522]
[1727210179855,7.5354,2654.2,2653.9,0.05823302]
[1727210180159,7.5354,2654.2,2653.7,0.7522]
[1727210180364,3.76775,2654.1,2654.0,0.05810353]
[1727210180894,3.76775,2654.1,2653.7,0.7522]
[1727210181093,3.76775,2654.1,2654.0,0.05810353]
[1727210181303,4.52115,2654.2,2653.7,4.5204]
[1727210181601,4.52115,2654.2,2653.8,3.76817]
[1727210181602,3.76761,2654.2,2653.8,3.76817]
[1727210181898,3.7672,2654.5,2653.9,0.05814265]
[1727210182068,3.7672,2654.5,2654.0,3.76782]
[1727210182273,3.7672,2654.5,2654.0,3.76781]
[1727210182469,3.7672,2654.5,2654.1,0.05804182]
[1727210182886,3.76734,2654.4,2654.1,0.05804182]
[1727210183106,3.76734,2654.4,2653.8,3.76808]
[1727210183265,3.76734,2654.4,2654.2,0.05790333]
[1727210183596,3.76734,2654.4,2653.9,3.76793]
[1727210183957,3.76734,2654.4,2654.0,0.05802674]
[1727210184157,3.76734,2654.4,2654.0,3.82587674]
[1727210184358,7.53432,2654.6,2654.0,3.82587674]
[1727210184637,8.287752,2654.6,2654.0,3.82587674]
[1727210184763,3.76721,2654.5,2654.0,3.82587674]
[1727210184963,3.76733,2654.4,2654.0,0.05802674]
[1727210185898,3.76714,2654.6,2654.0,3.82587674]
[1727210186094,3.76727,2654.5,2654.0,3.82587674]
[1727210187423,3.76733,2654.4,2654.0,0.05802674]
[1727210188523,3.76733,2654.4,2654.0,3.82589674]
[1727210188723,3.76733,2654.4,2654.0,0.05802674]
[1727210189094,3.76714,2654.6,2653.9,3.76793]
[1727210189296,8.32113785,2654.6,2654.1,3.76774]
[1727210189638,9.4291787,2654.6,2654.2,0.05788526]
[1727210189798,3.76721,2654.5,2654.2,0.05788526]
[1727210189998,3.76747,2654.3,2654.2,0.05788526]
[1727210190185,3.76747,2654.3,2653.7,4.52048]
[1727210190383,4.22318079,2654.2,2653.8,0.05807338]
[1727210190696,7.53502,2654.3,2653.8,3.76815]
[1727210190912,7.53502,2654.3,2653.9,0.05792133]
[1727210191116,4.55430785,2654.3,2653.9,0.05792133]
[1727210191514,4.55430785,2654.3,2653.8,3.76815]
[1727210192036,8.32185785,2654.3,2653.9,0.05796198]
[1727210192346,8.32189785,2654.3,2653.9,0.05796198]
[1727210192484,8.32189785,2654.3,2653.8,3.76815]
[1727210192690,4.55452785,2654.2,2653.7,8.28867]
[1727210192991,3.76769,2654.2,2653.8,3.82616659]
[1727210193210,3.76786,2654.1,2653.8,0.05799659]
[1727210193410,3.76786,2654.1,2653.7,0.7522]
[1727210193411,4.55469785,2654.1,2653.7,0.7522]
[1727210193693,4.55469785,2654.1,2653.8,0.05799659]
[1727210194119,4.55469785,2654.1,2653.7,0.7522]
[1727210194315,0.78683785,2654.1,2653.7,0.7522]
[1727210194549,3.76789,2654.0,2653.8,0.05799659]
[1727210194897,4.55472785,2654.0,2653.7,0.7522]
[1727210195093,3.76803,2653.9,2653.7,0.7522]
[1727210195397,8.32297785,2653.9,2653.4,4.52092]
[1727210195597,4.55486785,2653.9,2653.5,3.7686]
[1727210196309,0.78683785,2653.8,2653.5,3.7686]
[1727210196639,4.55486785,2653.9,2653.5,3.7686]
[1727210197501,0.78683785,2653.9,2653.5,3.7686]
[1727210198016,0.78683785,2653.9,2653.5,4.22067]
[1727210198213,0.78683785,2654.0,2653.7,3.76825]
[1727210198433,0.78683785,2654.0,2653.7,3.76823]
[1727210198614,0.78683785,2654.0,2653.8,4.55529]
[1727210199255,0.78683785,2654.1,2653.8,4.55529]
[1727210199415,0.78683785,2654.1,2653.9,3.76796]
[1727210200310,0.78683785,2654.2,2653.9,3.76796]
[1727210200515,0.78683785,2654.2,2653.9,7.53593]
[1727210200747,0.78683785,2654.2,2653.9,3.76796]
[1727210200954,0.78683785,2654.2,2654.0,0.05796802]
[1727210201336,0.78683785,2654.1,2654.0,0.05796802]
[1727210202411,0.78683785,2654.2,2654.0,0.05796802]
[1727210203218,0.78683785,2654.1,2654.0,0.05796802]
[1727210205315,1.96938241,2654.1,2654.0,0.05796802]
[1727210205514,1.18254456,2654.1,2653.8,0.7872]
[1727210205718,0.79008351,2654.0,2653.8,0.7872]
[1727210206646,4.55799351,2654.0,2653.8,0.7872]
[1727210206821,1.89857293,2654.0,2653.7,3.76828]
[1727210207020,0.79008351,2654.0,2653.7,3.76828]
[1727210207217,0.79008351,2654.0,2653.8,3.76817]
[1727210208131,0.79008351,2654.0,2653.4,0.7872]
[1727210208334,0.79008351,2653.9,2653.6,3.76838]
[1727210209622,0.79008351,2653.9,2653.6,7.53675]
[1727210209826,0.79008351,2653.9,2653.7,3.76829]
[1727210210252,0.79008351,2653.9,2653.4,4.55591]
[1727210210560,0.79008351,2653.7,2653.5,3.7686]
[1727210211745,0.79008351,2653.7,2653.6,3.76846]
[1727210212785,1.57672608,2654.0,2653.6,3.76846]
[1727210212786,1.18254456,2653.9,2653.7,3.76832]
[1727210213286,1.18254456,2653.8,2653.7,3.76832]
[1727210214257,1.18254456,2653.9,2653.8,4.57938]
[1727210215999,1.18254456,2653.9,2653.8,4.63752566]
[1727210222583,0.79170911,2654.1,2653.9,4.31803]
[1727210222769,0.79170911,2654.3,2654.0,9.14882302]
[1727210222971,0.79170911,2654.4,2654.3,3.76747]
[1727210223272,0.79170911,2654.5,2654.3,3.82528003]
[1727210223479,0.79170911,2654.4,2654.3,3.82528003]
[1727210223680,1.18254456,2654.5,2654.3,3.82528003]
[1727210224105,0.79128523,2654.4,2654.3,3.82528003]
[1727210227293,0.79128523,2654.5,2654.3,3.82528003]
[1727210227631,0.79128523,2654.4,2654.3,0.05781003]
[1727210227999,0.79128523,2654.4,2654.2,3.7676]
[1727210228199,0.79128523,2654.4,2654.3,3.8248239]
[1727210228798,0.79128523,2654.4,2654.3,0.0573539]
[1727210229234,0.79128523,2654.4,2654.2,3.7676]
[1727210229532,0.79128523,2654.5,2654.3,0.0573539]
[1727210229784,0.79128523,2654.4,2654.2,3.76754]
[1727210230136,0.79128523,2654.4,2653.9,0.8015]
[1727210230437,0.79128523,2654.5,2654.3,3.76743]
[1727210231023,0.79128523,2654.4,2654.3,3.76743]
[1727210231225,0.79128523,2654.5,2654.3,3.76743]
[1727210231409,0.79128523,2654.5,2654.1,3.76765]
[1727210231615,0.79128523,2654.5,2654.2,3.76761]
[1727210232306,0.79128523,2654.5,2654.0,3.76778]
[1727210232498,0.79128523,2654.5,2654.1,3.76767]
[1727210232694,5.32507523,2654.5,2654.0,3.76778]
[1727210232895,3.76747,2654.3,2653.9,3.76802]
[1727210233134,0.79051993,2654.1,2653.9,3.76802]
[1727210233340,0.79051993,2654.1,2653.9,7.53599]
[1727210233567,0.79051993,2654.1,2653.9,3.76797]
[1727210233844,0.79051993,2654.1,2653.9,7.53586]
[1727210234817,0.79051993,2654.1,2654.0,3.76789]
[1727210235017,1.18254456,2654.3,2654.0,3.76789]
[1727210235250,1.18254456,2654.4,2654.0,3.76789]
[1727210235449,1.18254456,2654.3,2654.0,3.76789]
[1727210237355,1.18254456,2654.3,2654.0,4.56939]
[1727210237518,1.18254456,2654.4,2654.1,3.76763]
[1727210238329,2.34322608,2654.5,2654.0,4.56939]
[1727210238330,1.18254456,2654.3,2654.0,4.56939]
[1727210238652,1.18254456,2654.3,2654.0,8.33718]
[1727210240250,1.18254456,2654.3,2654.0,4.56929]
[1727210243113,0.79065004,2654.1,2653.6,0.8015]
[1727210243427,0.79065004,2654.1,2653.9,3.76801]
[1727210244734,0.79065004,2654.1,2653.8,3.76807]
[1727210244934,0.79065004,2654.0,2653.8,3.76807]
[1727210245335,0.79065004,2654.0,2653.8,7.53618]
[1727210245542,0.79065004,2654.0,2653.9,3.76803]
[1727210245925,0.79065004,2654.1,2653.9,3.82230678]
[1727210246132,0.79065004,2654.0,2653.9,3.82230678]
[1727210247162,0.79065004,2654.0,2653.9,0.05427678]
[1727210247318,6.30843554,2654.0,2653.5,3.76852]
[1727210247520,0.79089631,2653.7,2653.4,7.53734]
[1727210248725,0.79089631,2653.7,2653.4,3.76866]
[1727210248926,0.79089631,2653.7,2653.4,7.5373]
[1727210249969,0.79089631,2653.7,2653.5,3.7685]
[1727210250462,0.79089631,2653.7,2653.4,7.5373]
[1727210250626,0.79089631,2653.7,2653.4,8.37118]
[1727210252576,0.79089631,2653.8,2653.5,3.76853]
[1727210252782,0.79089631,2653.7,2653.5,3.76853]
[1727210254943,0.79089631,2653.8,2653.5,3.76853]
[1727210255359,0.79089631,2653.7,2653.5,3.76853]
[1727210255534,0.79089631,2653.8,2653.5,4.685798]
[1727210255730,0.79089631,2653.9,2653.8,3.76818]
[1727210255936,0.79089631,2654.2,2653.9,3.76803]
[1727210256147,0.79089631,2654.2,2654.1,3.76775]
[1727210256785,0.79089631,2654.3,2654.2,3.76761]
[1727210256968,0.79089631,2654.3,2654.1,3.76775]
[1727210256969,0.79089631,2654.4,2654.3,3.76747]
[1727210258859,0.79089631,2654.4,2654.3,4.603706]
[1727210260871,0.79089631,2654.4,2654.3,4.65789374]
[1727210263065,0.79089631,2654.4,2654.3,0.89042374]
[1727210263383,0.79089631,2654.4,2654.3,0.05418774]
[1727210263584,0.79089631,2654.4,2654.2,7.53505]
[1727210263776,0.79089631,2654.4,2654.3,0.05418774]
[1727210263976,0.79089631,2654.4,2654.3,3.76747]
[1727210264220,0.79089631,2654.4,2654.3,3.82165774]
[1727210264401,0.79089631,2654.4,2654.3,0.05418774]
[1727210264599,0.79089631,2654.4,2654.0,0.68844539]
[1727210264600,0.79089631,2654.4,2654.2,3.76761]
[1727210264812,0.79089631,2654.4,2654.3,0.05418774]
[1727210265275,0.79089631,2654.4,2654.2,3.76761]
[1727210265476,0.79089631,2654.4,2654.3,0.05418774]
[1727210265816,0.79089631,2654.4,2654.3,3.76747]
[1727210266034,0.79089631,2654.4,2654.3,4.57516574]
[1727210268016,0.79089631,2654.4,2654.3,0.80769574]
[1727210268190,0.79089631,2654.4,2654.3,4.57516574]
[1727210268510,0.79089631,2654.4,2654.3,3.82165774]
[1727210268714,0.79089631,2654.4,2654.3,0.05418774]
[1727210268877,0.79089631,2654.4,2654.1,3.76772]
[1727210269080,4.95353447,2654.5,2654.2,0.05386671]
[1727210269081,0.79089631,2654.3,2654.2,0.05386671]
[1727210269504,0.79089631,2654.3,2654.0,4.45632539]
[1727210269812,0.79089631,2654.3,2654.1,0.05391486]
[1727210270377,0.79089631,2654.3,2654.1,3.82164486]
[1727210270582,0.79089631,2654.3,2654.1,4.73216489]
[1727210271791,0.79089631,2654.3,2654.1,0.05391486]
[1727210272127,0.79089631,2654.2,2654.1,0.05391486]
[1727210272699,1.97724078,2654.2,2654.1,0.05391486]
[1727210272898,9.93858608,2654.3,2653.8,3.76816]
[1727210272899,5.78063447,2654.3,2653.8,3.76816]
[1727210273106,0.79057892,2654.1,2653.9,0.05399767]
[1727210274703,0.79057892,2654.0,2653.9,0.05399767]
[1727210279434,0.79057892,2654.1,2653.9,0.05399767]
[1727210279633,0.79057892,2654.0,2653.9,0.05399767]
[1727210280359,0.79057892,2654.1,2653.9,4.27978544]
[1727210280561,0.79057892,2654.1,2654.0,3.76789]
[1727210280766,0.79057892,2654.1,2654.0,3.82206909]
[1727210282762,0.79057892,2654.2,2654.0,4.62685478]
[1727210282944,0.79057892,2654.2,2654.1,3.76775]
[1727210283150,0.79057892,2654.2,2654.1,3.82185842]
[1727210284037,1.18634447,2654.3,2654.1,3.82185842]
[1727210284571,0.78993742,2654.3,2654.1,4.57735842]
[1727210284740,0.78993742,2654.3,2654.2,4.22534584]
[1727210285067,0.78993742,2654.4,2654.3,0.5]
[1727210285359,1.18634447,2654.4,2654.3,0.5539761]
[1727210286882,8.60812598,2654.4,2654.3,0.5539761]
[1727210287189,3.80091599,2654.4,2654.3,0.5539761]
[1727210287485,6.14356245,2654.4,2654.3,0.5539761]
[1727210287711,6.14360578,2654.4,2654.3,0.5539761]
[1727210287856,0.7964,2654.4,2654.3,0.5539761]
[1727210288368,0.7964,2654.4,2654.3,0.5]
[1727210288369,1.57983872,2654.4,2654.3,0.5]
[1727210288572,5.34701872,2654.5,2654.3,0.55388159]
[1727210288776,1.18498995,2654.4,2654.3,0.5]
[1727210288945,5.34701872,2654.5,2654.3,0.5]
[1727210289147,5.34701872,2654.5,2654.3,1.0]
[1727210289595,3.76732,2654.4,2654.3,1.0]
[1727210289759,1.58032878,2654.4,2654.3,1.0]
[1727210290189,1.18526787,2654.4,2654.3,1.0]
[1727210290391,1.18526787,2654.5,2654.4,3.76732]
[1727210290889,1.18526787,2654.5,2654.4,3.82117145]
[1727210291960,1.18526787,2654.5,2654.4,4.7612656]
[1727210293190,0.79050202,2654.6,2654.5,3.76718]
[1727210293354,1.18526787,2654.8,2654.6,4.57934]
[1727210293355,0.79050202,2654.7,2654.6,4.57934]
[1727210293553,0.79050202,2654.8,2654.7,3.7669]
[1727210293799,1.18526787,2654.9,2654.8,3.76676]
[1727210294282,1.18526787,2654.9,2654.8,3.82031087]
[1727210296365,1.18526787,2655.0,2654.9,3.76662]
[1727210296558,1.18484155,2655.0,2654.9,3.76662]
[1727210296759,1.18484155,2655.0,2654.9,3.82000124]
[1727210297191,1.18484155,2655.0,2654.9,0.05338124]
[1727210297699,1.18484155,2655.0,2654.9,3.76662]
[1727210298068,1.18484155,2655.0,2654.9,3.82000124]
[1727210302820,1.18484155,2655.0,2654.9,0.05338124]
[1727210302977,1.18484155,2655.0,2654.8,3.76664]
[1727210303316,0.79017153,2654.9,2654.8,3.76664]
[1727210305499,0.79017153,2654.9,2654.8,4.601223]
[1727210305715,0.79017153,2655.0,2654.8,4.601223]
[1727210306024,0.79017153,2655.0,2654.8,3.8197273]
[1727210306199,0.79017153,2654.9,2654.8,3.8198273]
[1727210306603,0.79017153,2654.9,2654.8,0.0530873]
[1727210306809,0.79017153,2654.9,2654.3,1.0]
[1727210306810,3.76678,2654.8,2654.3,4.76746]
[1727210307129,4.55634903,2654.7,2654.3,4.7674]
[1727210307288,0.78943903,2654.7,2654.3,4.7674]
[1727210308026,0.78943903,2654.6,2654.3,1.0]
[1727210308333,0.78943903,2654.6,2654.3,4.76744]
[1727210309625,4.55650903,2654.6,2654.3,1.0]
[1727210310316,0.78943903,2654.6,2654.3,1.0]
[1727210312207,4.55656903,2654.6,2654.3,1.0]
[1727210312635,3.7672,2654.5,2654.3,1.0]
[1727210312957,0.7964,2654.4,2654.3,1.0]
[1727210313246,1.58583903,2654.4,2654.3,1.0]
[1727210313742,5.35315903,2654.4,2654.3,1.0]
[1727210314539,0.7964,2654.4,2654.3,1.0]
[1727210314857,5.35300002,2654.4,2654.3,1.0]
[1727210315343,6.93709859,2654.4,2654.3,1.0]
[1727210315768,3.16977859,2654.4,2654.3,1.0]
[1727210316059,0.78925754,2654.4,2654.3,1.0]
[1727210316274,0.78925754,2654.4,2654.3,4.76747]
[1727210316476,0.78925754,2654.5,2654.3,8.58690149]
[1727210316623,0.78925754,2654.6,2654.3,4.81943149]
[1727210317766,0.78925754,2654.6,2654.5,3.76718]
[1727210318068,0.78925754,2654.8,2654.6,3.76704]
[1727210318489,1.18484155,2654.9,2654.7,0.05181297]
[1727210319067,0.78842019,2654.8,2654.7,0.05181297]
[1727210320441,1.18484155,2654.9,2654.7,0.05181297]
[1727210321051,0.78836008,2654.8,2654.7,0.05181297]
[1727210321230,1.18484155,2654.9,2654.7,0.05181297]
[1727210322571,1.18484155,2654.8,2654.7,0.05181297]
[1727210322731,1.18484155,2654.8,2654.4,3.76731]
[1727210322936,0.78843878,2654.6,2654.5,0.05163509]
[1727210323465,0.78843878,2654.6,2654.4,3.76727]
[1727210323632,0.78843878,2654.6,2654.5,0.05163509]
[1727210328248,1.18484155,2654.7,2654.5,0.05163509]
[1727210328249,0.97328033,2654.7,2654.5,0.05163509]
[1727210329798,0.97328033,2654.7,2654.5,3.81878509]
[1727210329990,0.97328033,2654.7,2654.5,4.6773956]
[1727210330300,2.36262878,2654.9,2654.5,4.6773956]
[1727210330456,1.58032878,2654.9,2654.7,3.76688]
[1727210330857,1.58032878,2654.9,2654.8,0.05152663]
[1727210331458,6.52065779,2654.9,2654.8,0.05152663]
[1727210331684,6.52065779,2654.9,2654.3,5.52527]
[1727210331685,3.76676,2654.8,2654.3,5.52527]
[1727210331892,5.34472308,2654.8,2654.3,5.52527]
[1727210332090,5.34472308,2654.8,2654.4,0.05169222]
[1727210332515,1.57796308,2654.8,2654.4,3.81900222]
[1727210332796,2.75403779,2654.9,2654.4,3.81900222]
[1727210332797,6.12694308,2654.9,2654.4,3.81900222]
[1727210333497,1.57796308,2654.8,2654.4,3.81900222]
[1727210334191,1.57796308,2654.8,2654.4,0.05169222]
[1727210334394,1.57796308,2654.8,2654.5,7.53428]
[1727210334553,1.57796308,2654.8,2654.5,7.58592859]
[1727210334758,1.57796308,2654.8,2654.5,3.81874859]
[1727210335793,1.57796308,2654.8,2654.6,3.76704]